[Event "Suryabinayak Municipality Open B 2024"]
[Site "Bhaktapur"]
[Date "2024.12.07"]
[Round "9.5"]
[White "Tandukar, Nabin"]
[Black "Singh, Suraj"]
[Result "1-0"]
[ECO "B77"]
[WhiteElo "1900"]
[BlackElo "1655"]
[Annotator "ChessBase"]
[PlyCount "51"]
[EventDate "2024.12.02"]
[EventCountry "NEP"]
[SourceTitle "playchess.com"]
[Source "ChessBase"]
[SourceQuality "1"]
[TimeControl "5400+30"]

1. e4 {[%emt 0:15:57]} c5 {[%emt 0:00:09]} 2. Nf3 {[%emt 0:00:07]} d6 {[%emt 0:00:16]} 3. d4 {[%emt 0:00:04]} cxd4 {[%emt 0:00:17]} 4. Nxd4 {[%emt 0:00:05]} Nf6 {[%emt 0:00:37]} 5. Nc3 {[%emt 0:00:07]} g6 {[%emt 0:00:38]} 6. Be3 {[%emt 0:03:40]} Bg7 {[%emt 0:00:45]} 7. Bc4 {[%emt 0:00:54]} O-O {[%emt 0:00:47]} 8. f3 {[%emt 0:00:35]} Nc6 {[%emt 0:01:06]} 9. Qd2 {[%emt 0:00:26]} a6 {[%emt 0:00:31]} 10. O-O-O {[%emt 0:00:36]} Qc7 {[%emt 0:01:05]} 11. Bb3 {[%emt 0:03:20]} Na5 {[%emt 0:01:28]} 12. Bh6 {[%emt 0:00:13]} Nxb3+ {[%emt 0:00:47]} 13. axb3 {[%emt 0:00:41]} b5 {[%emt 0:02:53]} 14. g4 {[%emt 0:00:46]} Bb7 {[%emt 0:01:14]} 15. h4 {[%emt 0:00:33]} Nd7 {[%emt 0:00:46]} 16. h5 {[%emt 0:00:57]} b4 {[%emt 0:01:45]} 17. Na4 {[%emt 0:01:12]} Rac8 {[%emt 0:01:09]} 18. Bxg7 {[%emt 0:00:04]} Kxg7 {[%emt 1:23:17]} 19. hxg6 {[%emt 1:09:43]} h5 {[%emt 0:00:00]} 20. Rxh5 {[%emt 0:00:00]} Rh8 {[%emt 0:00:00]} 21. Rdh1 {[%emt 0:00:00]} Qb8 {[%emt 0:00:00]} 22. Rh7+ {[%emt 0:00:00]} Rxh7 {[%emt 0:00:00]} 23. Rxh7+ {[%emt 0:00:00]} Kf8 {[%emt 0:02:30]} 24. Rh8+ {[%emt 0:00:00]} Kg7 {[%emt 0:00:00]} 25. Qh6+ {[%emt 0:00:00]} Kf6 {[%emt 0:00:00]} 26. Qf4+ {[%emt 0:00:00]} 1-0

[Event "Suryabinayak Municipality Open B 2024"]
[Site "Bhaktapur"]
[Date "2024.12.07"]
[Round "9.6"]
[White "Maharjan, Prem Krishna"]
[Black "Chaudhary, Sushil"]
[Result "1-0"]
[ECO "B30"]
[WhiteElo "1899"]
[BlackElo "1900"]
[Annotator "RC"]
[PlyCount "125"]
[EventDate "2024.12.02"]
[EventCountry "NEP"]
[SourceTitle "playchess.com"]
[Source "ChessBase"]
[SourceQuality "1"]
[TimeControl "5400+30"]

1. e4 {[%emt 0:04:41]} c5 {[%emt 0:03:02]} 2. Nf3 {[%emt 0:08:31]} Nc6 {[%emt 0:00:04]} 3. Nc3 {[%emt 0:01:08]} g6 {[%emt 0:00:12]} 4. Bc4 {[%emt 0:01:49]} Bg7 {[%emt 0:03:11]} 5. d3 {[%emt 0:01:29]} Nf6 {[%emt 0:00:15]} 6. Bg5 {[%emt 0:01:54]} d6 {[%emt 0:01:58]} 7. Qd2 {[%emt 0:01:04]} h6 {[%emt 0:01:49]} 8. Bf4 {[%emt 0:00:49]} Bg4 {[%emt 0:00:42]} 9. e5 {[%emt 0:01:05]} Nh5 {[%emt 0:05:13]} 10. exd6 {[%emt 0:02:33]} Bxf3 {[%emt 0:01:15]} 11. gxf3 {[%emt 0:01:06]} exd6 {[%emt 0:02:48]} 12. Be3 {[%emt 0:01:19]} Nf6 {[%emt 0:04:58]} 13. Bb3 {[%emt 0:02:20]} O-O {[%emt 0:14:40]} 14. O-O-O {[%emt 0:00:41]} Kh7 {[%emt 0:00:56]} 15. f4 {[%emt 0:01:21]} Na5 {[%emt 0:01:55]} 16. Rdg1 {[%emt 0:02:19]} Nxb3+ {[%emt 0:02:49]} 17. axb3 {[%emt 0:00:24]} Qa5 {[%emt 0:01:12]} 18. Kb1 {[%emt 0:00:35]} Rac8 {[%emt 0:03:34]} 19. f5 {[%emt 0:00:41]} d5 {[%emt 0:00:47]} 20. Nxd5 {[%emt 0:01:56]} Qxd2 {[%emt 0:05:41]} 21. Nxf6+ {[%emt 0:00:17]} Bxf6 {[%emt 0:00:06]} 22. fxg6+ {[%emt 0:00:08]} fxg6 {[%emt 0:00:04]} 23. Bxd2 {[%emt 0:00:14]} Bh4 {[%emt 0:00:13]} 24. f4 {[%emt 0:00:33]} Rce8 {[%emt 0:00:29]} 25. Rg2 {[%emt 0:00:35]} Re6 {[%emt 0:02:07]} 26. Rhg1 {[%emt 0:02:44]} Rf7 {[%emt 0:00:45]} 27. Kc1 {[%emt 0:02:24]} Rfe7 {[%emt 0:01:22]} 28. Kd1 {[%emt 0:02:51]} Ra6 {[%emt 0:09:06]} 29. Bc3 {[%emt 0:13:10]} Ra1+ {[%emt 0:00:15]} 30. Kd2 {[%emt 0:01:48]} Be1+ {[%emt 0:00:11]} 31. Rxe1 {[%emt 0:00:17]} Rexe1 {[%emt 0:00:07]} 32. Be5 {[%emt 0:00:31]} b5 {[%emt 0:09:57]} 33. Kc3 {[%emt 0:00:24]} Ra6 {[%emt 0:00:49]} 34. b4 {[%emt 0:00:47]} Rc6 {[%emt 0:03:09]} 35. bxc5 {[%emt 0:01:02]} Rxc5+ {[%emt 0:00:28]} 36. Kb4 {[%emt 0:00:52]} Rd5 {[%emt 0:00:49]} 37. d4 {[%emt 0:00:13]} Ra1 {[%emt 0:04:49]} 38. Kc3 {[%emt 0:03:28]} Ra6 {[%emt 0:04:38]} 39. Kd3 {[%emt 0:00:42]} Rd7 {[%emt 0:01:59]} 40. c3 {[%emt 0:01:03]} Rc6 {[%emt 0:00:21]} 41. h4 {[%emt 0:00:19]} a5 {[%emt 0:00:43]} 42. h5 {[%emt 0:00:51]} b4 {[%emt 0:03:25]} 43. c4 {[%emt 0:01:27]} a4 {[%emt 0:00:03]} 44. d5 {[%emt 0:00:43]} a3 {[%emt 0:01:10]} 45. bxa3 {[%emt 0:00:24]} bxa3 {[%emt 0:00:05]} 46. hxg6+ {[%emt 0:01:12]} Rxg6 {[%emt 0:00:05]} 47. Ra2 {[%emt 0:00:21]} Ra6 {[%emt 0:00:12]} 48. f5 {[%emt 0:00:22]} Rf7 {[%emt 0:01:21]} 49. f6 {[%emt 0:10:10]} Kg6 {[%emt 0:00:45]} 50. c5 {[%emt 0:00:09]} Kf5 {[%emt 0:03:29]} 51. Bd4 {[%emt 0:00:19]} Rd7 {[%emt 0:00:36]} 52. Rf2+ {[%emt 0:00:49]} Kg6 {[%emt 0:00:06]} 53. Ke4 {[%emt 0:02:34]} a2 {[%emt 0:01:45]} 54. Rf1 {[%emt 0:00:29]} Ra8 {[%emt 0:01:45]} 55. d6 {[%emt 0:00:17]} Rb7 {[%emt 0:02:03]} 56. Rg1+ {[%emt 0:01:49]} Kh7 {[%emt 0:00:37]} 57. c6 {[%emt 0:01:02]} Rb1 {[%emt 0:00:17]} 58. Rg7+ {[%emt 0:00:17]} Kh8 {[%emt 0:00:03]} 59. f7 {[%emt 0:00:07]} a1=Q {[%emt 0:01:03]} 60. Rg8+ {[%emt 0:00:16]} Kh7 {[%emt 0:00:06]} 61. Bxa1 {[%emt 0:00:19]} Rxg8 {[%emt 0:00:36]} 62. fxg8=Q+ {[%emt 0:00:19]} Kxg8 {[%emt 0:00:05]} 63. c7 {[%emt 0:00:09]} 1-0

[Event "Suryabinayak Municipality Open B 2024"]
[Site "Bhaktapur"]
[Date "2024.12.07"]
[Round "9.7"]
[White "Thapa, Binay"]
[Black "Chaulagain, Purusottam"]
[Result "1-0"]
[ECO "D02"]
[WhiteElo "1697"]
[BlackElo "1974"]
[Annotator "RC"]
[PlyCount "113"]
[EventDate "2024.12.02"]
[EventCountry "NEP"]
[SourceTitle "playchess.com"]
[Source "ChessBase"]
[SourceQuality "1"]
[TimeControl "5400+30"]

1. Nf3 {[%emt 0:00:06]} d5 {[%emt 0:10:34]} 2. d4 {[%emt 0:00:50]} e6 {[%emt 0:00:16]} 3. Bf4 {[%emt 0:00:59]} c5 {[%emt 0:00:06]} 4. c3 {[%emt 0:01:23]} Nf6 {[%emt 0:00:16]} 5. Nbd2 {[%emt 0:00:21]} Nc6 {[%emt 0:00:21]} 6. e3 {[%emt 0:02:04]} Bd6 {[%emt 0:00:32]} 7. Bxd6 {[%emt 0:00:33]} Qxd6 {[%emt 0:00:06]} 8. Bd3 {[%emt 0:00:13]} O-O {[%emt 0:00:26]} 9. O-O {[%emt 0:00:32]} b6 {[%emt 0:01:48]} 10. Re1 {[%emt 0:01:35]} Bb7 {[%emt 0:06:03]} 11. e4 {[%emt 0:02:39]} dxe4 {[%emt 0:06:33]} 12. Nxe4 {[%emt 0:02:47]} Nxe4 {[%emt 0:02:20]} 13. Rxe4 {[%emt 0:05:59]} cxd4 {[%emt 0:07:30]} 14. Rh4 {[%emt 0:02:53]} f5 {[%emt 0:04:24]} 15. Nxd4 {[%emt 0:10:49]} g6 {[%emt 0:05:37]} 16. Qe2 {[%emt 0:05:01]} Rae8 {[%emt 0:04:39]} 17. Rd1 {[%emt 0:05:36]} Qe5 {[%emt 0:08:52]} 18. Nxc6 {[%emt 0:01:53]} Qxe2 {[%emt 0:00:39]} 19. Bxe2 {[%emt 0:00:27]} Bxc6 {[%emt 0:00:03]} 20. Rhd4 {[%emt 0:00:16]} Kf7 {[%emt 0:05:18]} 21. Rd6 {[%emt 0:01:51]} Rc8 {[%emt 0:01:39]} 22. Bc4 {[%emt 0:00:58]} Rfe8 {[%emt 0:00:48]} 23. Bb3 {[%emt 0:05:38]} Re7 {[%emt 0:10:22]} 24. Re1 {[%emt 0:00:33]} Bd7 {[%emt 0:00:17]} 25. Rxd7 {[%emt 0:01:37]} Rxd7 {[%emt 0:00:42]} 26. Bxe6+ {[%emt 0:00:07]} Ke7 {[%emt 0:00:30]} 27. Bxf5+ {[%emt 0:00:13]} Kd8 {[%emt 0:00:39]} 28. Bxd7 {[%emt 0:00:17]} Kxd7 {[%emt 0:00:04]} 29. f3 {[%emt 0:00:27]} Rc5 {[%emt 0:00:25]} 30. Kf2 {[%emt 0:00:21]} Ra5 {[%emt 0:00:23]} 31. a3 {[%emt 0:00:07]} Rb5 {[%emt 0:00:15]} 32. Re2 {[%emt 0:00:12]} a5 {[%emt 0:00:13]} 33. a4 {[%emt 0:00:30]} Rd5 {[%emt 0:00:23]} 34. Ke3 {[%emt 0:00:35]} Kc6 {[%emt 0:00:22]} 35. Rd2 {[%emt 0:01:25]} Re5+ {[%emt 0:00:10]} 36. Kf4 {[%emt 0:00:05]} Rf5+ {[%emt 0:00:46]} 37. Ke4 {[%emt 0:00:09]} Kc5 {[%emt 0:00:25]} 38. b3 {[%emt 0:00:40]} Kc6 {[%emt 0:01:18]} 39. g4 {[%emt 0:00:43]} Rf7 {[%emt 0:00:17]} 40. f4 {[%emt 0:00:15]} Re7+ {[%emt 0:00:12]} 41. Kf3 {[%emt 0:00:17]} Re1 {[%emt 0:00:11]} 42. c4 {[%emt 0:05:53]} Rc1 {[%emt 0:02:48]} 43. Rd3 {[%emt 0:01:50]} Rh1 {[%emt 0:01:23]} 44. Kg2 {[%emt 0:01:15]} Re1 {[%emt 0:00:37]} 45. Kf2 {[%emt 0:00:30]} Re6 {[%emt 0:01:53]} 46. Kf3 {[%emt 0:01:03]} Kc5 {[%emt 0:00:48]} 47. Rd5+ {[%emt 0:00:22]} Kc6 {[%emt 0:00:43]} 48. f5 {[%emt 0:01:28]} gxf5 {[%emt 0:00:18]} 49. gxf5 {[%emt 0:00:31]} Re1 {[%emt 0:00:13]} 50. h4 {[%emt 0:00:29]} Rh1 {[%emt 0:00:32]} 51. Kg4 {[%emt 0:00:13]} Rg1+ {[%emt 0:00:06]} 52. Kh5 {[%emt 0:00:14]} Rg3 {[%emt 0:00:24]} 53. Rb5 {[%emt 0:00:08]} Kc7 {[%emt 0:00:38]} 54. Kh6 {[%emt 0:00:14]} Rg4 {[%emt 0:00:24]} 55. h5 {[%emt 0:00:06]} Rh4 {[%emt 0:00:14]} 56. f6 {[%emt 0:00:40]} Rf4 {[%emt 0:01:37]} 57. Kg7 {[%emt 0:00:21]} 1-0